lending/lending_fUSD_20240202
["ID","MTS","AMOUNT","RATE_DAILY","PERIOD"]
[313179154,1706889040156,-828.56922861,0.0002288,2]
[313179155,1706889040167,-21459.44416083,0.0002288,2]
[313179157,1706889040178,-465.82650474,0.0002288,2]
[313179159,1706889040190,-590.95400001,0.0002288,2]
[313179163,1706889040217,-524.32057752,0.0002288,2]
[313179165,1706889040229,-1487.09065114,0.0002288,2]
[313179167,1706889040240,-406.96089984,0.0002288,2]
[313179169,1706889040252,-1507.98696737,0.0002288,2]
[313179675,1706889044992,-544.56979508,0.00022879,2]
[313179677,1706889045002,-9935.74686639,0.0002288,2]
[313179765,1706889045464,-7525.7608,0.0002288,2]
[313179768,1706889045476,-284651.70975188,0.0002288,2]
[313179771,1706889045488,-1303.12237507,0.0002288,2]
[313179790,1706889045580,-160733.10301382,0.0002288,2]
[313179793,1706889045592,-1161.65779232,0.0002288,2]
[313179796,1706889045604,-325.71932272,0.0002288,2]
[313179801,1706889045615,-1155.90000001,0.0002288,2]
[313179806,1706889045640,-907.23067622,0.0002288,2]
[313179809,1706889045651,-222490.38244664,0.0002288,2]
[313179822,1706889045701,-914.22804005,0.0002288,2]
[313179825,1706889045712,-648.91636192,0.0002288,2]
[313179836,1706889045761,-359.00939672,0.0002288,2]
[313180338,1706889062100,2325.88593419,0.00022879,4]
[313180339,1706889062126,1349.87476728,0.00022879,4]
[313180341,1706889078634,600.0,0.00021,2]
[313180342,1706889080832,151.75654323,9e-05,2]
[313180343,1706889103573,178.71,0.00022308,2]
[313180344,1706889122647,425.92345826,0.00022998,3]
[313180345,1706889127434,428.07,0.00020373,2]
[313180355,1706889153363,3195.91206529,0.00021963,2]
[313180356,1706889195481,250.0,0.00022137,2]
[313180358,1706889217329,257.78,0.00022,2]
[313180359,1706889218670,257.78,0.00022137,2]
[313180360,1706889219865,257.78,0.00022274,2]
[313180361,1706889221128,257.78,0.00022411,2]
[313180363,1706889248238,1413.83213866,0.0002,2]
[313180364,1706889270395,185.23744553,0.00023,3]
[313180365,1706889272325,630.12,0.00022024,2]
[313180366,1706889356217,200.0,0.00021914,2]
[313180367,1706889365811,767.71864577,0.000229,6]
[313180368,1706889378611,181.09,0.00021983,2]
[313180369,1706889384318,156.12,0.00022148,2]
[313180370,1706889384566,156.12,0.00022437,2]
[313180371,1706889391835,13074.24,0.00021979,2]
[313180372,1706889396396,500.0,0.00021979,2]
[313180374,1706889404961,13416.69,0.00021969,2]
[313180375,1706889413486,25505.65,0.00021963,2]
[313180376,1706889419619,681.01,0.00021963,2]
[313180377,1706889455904,250.0,0.00021963,2]
[313180378,1706889462775,166.32,0.00021963,2]
[313180379,1706889476133,2000.0,0.00021947,2]
[313180380,1706889523808,158.67428357,0.0002,2]
[313180381,1706889533215,564.34,0.00021945,2]
[313180382,1706889533911,403.19810569,0.00021304,2]
[313180386,1706889545798,155.0,0.0002,2]
[313180387,1706889546685,181.5,0.00021951,2]
[313180388,1706889547093,260.81174276,0.00021947,2]
[313180389,1706889549130,488.68522248,0.00021947,2]
[313180390,1706889549567,200.0,0.00021951,2]
[313180391,1706889553466,9693.06077553,0.00021947,2]
[313180392,1706889553945,404.41481397,0.00021947,2]
[313180393,1706889555281,2329.67917957,0.00021947,2]
[313180394,1706889555604,5204.41118884,0.00021947,2]
[313180395,1706889555893,403.19810569,0.00021289,2]
[313180396,1706889556284,1108.62585777,0.00021947,2]
[313180397,1706889557977,155.0,0.00022,2]
[313180398,1706889559256,1025.76280394,0.00021947,2]
[313180399,1706889560347,808.63102708,0.00021947,2]
[313180400,1706889560500,235.47214903,0.00021947,2]
[313180401,1706889561415,362.084026,0.00021947,2]
[313180402,1706889563802,155.0,0.0002,2]
[313180403,1706889564394,155.28326195,0.00021947,2]
[313180404,1706889566536,20434.55252657,0.00021837,2]
[313180405,1706889568272,6099.83638977,0.00021947,2]
[313180406,1706889569088,260.81174276,0.00021947,2]
[313180407,1706889569582,3198.37181468,0.00021963,2]
[313180408,1706889573894,403.19810569,0.00021289,2]
[313180409,1706889575300,2329.67917957,0.00021947,2]
[313180410,1706889575921,284.99180822,0.00021947,2]
[313180411,1706889577963,185.86400761,0.00022,2]
[313180412,1706889578488,235.47214903,0.00021947,2]
[313180413,1706889579389,362.084026,0.00021947,2]
[313180414,1706889583798,155.0,0.0002,2]
[313180415,1706889584396,156.21324294,0.00021947,2]
[313180416,1706889585092,260.81174276,0.00021947,2]
[313180417,1706889585132,1024.5188225,0.00021947,2]
[313180418,1706889586340,814.32002419,0.00021947,2]
[313180419,1706889587581,5204.41118884,0.00021947,2]
[313180420,1706889588255,6099.83638977,0.00021947,2]
[313180421,1706889591282,498.118635,0.00021947,2]
[313180422,1706889595893,403.19810569,0.00021289,2]
[313180423,1706889596499,235.47214903,0.00021947,2]
[313180424,1706889597920,284.99180822,0.00021289,2]
[313180425,1706889599818,304.73148853,0.0002,2]
[313180426,1706889605096,260.81174276,0.00021289,2]
[313180427,1706889605590,5204.41118884,0.00021289,2]
[313180428,1706889606255,219.84765612,0.00021289,2]
[313180429,1706889607257,1036.55041269,0.00021289,2]
[313180430,1706889611896,403.19810569,0.0002065,2]
[313180431,1706889613280,2329.67917957,0.00021289,2]
[313180432,1706889613379,362.084026,0.00021289,2]
[313180433,1706889614722,1123.21479385,0.00021289,2]
[313180434,1706889619925,284.99180822,0.00021289,2]
[313180435,1706889620728,235.47214903,0.00021289,2]
[313180436,1706889621111,260.81174276,0.00021289,2]
[313180437,1706889621270,1036.55041269,0.00021289,2]
[313180438,1706889623179,155.0,0.00021289,2]
[313180439,1706889625626,4934.87413481,0.00021289,2]
[313180440,1706889626706,1123.21479385,0.00021289,2]
[313180441,1706889627900,403.19810569,0.0002065,2]
[313180442,1706889631410,331.20587174,0.00021289,2]
[313180443,1706889636499,235.47214903,0.00021289,2]
[313180444,1706889637298,2329.67917957,0.00021289,2]
[313180445,1706889637926,417.46835655,0.0002065,2]
[313180446,1706889639056,155.0,0.0002065,2]
[313180447,1706889640190,1887.5269231,0.00021963,2]
[313180448,1706889641276,1036.55041269,0.0002065,2]
[313180449,1706889643125,260.81174276,0.0002065,2]
[313180450,1706889646709,1123.21479385,0.0002065,2]
[313180451,1706889656493,235.47214903,0.0002065,2]
[313180452,1706889657079,155.0,0.0002065,2]
[313180453,1706889659303,2329.67917957,0.0002065,2]
[313180454,1706889659904,2186.39244281,0.00020444,2]
[313180455,1706889660790,283.52752235,0.0002065,2]
[313180456,1706889662753,1123.21479385,0.0002065,2]
[313180457,1706889663261,385.53343101,0.0002065,2]
[313180458,1706889665899,403.19810569,0.00020031,2]
[313180459,1706889667126,260.81174276,0.0002065,2]
[313180460,1706889672498,235.47214903,0.0002065,2]
[313180461,1706889675077,155.0,0.0002065,2]
[313180462,1706889675329,2329.67917957,0.0002065,2]
[313180463,1706889684714,1123.21479385,0.0002065,2]
[313180464,1706889684756,283.52752235,0.0002065,2]
[313180465,1706889685118,260.81174276,0.0002065,2]
[313180466,1706889685916,403.19810569,0.00020031,2]
[313180467,1706889686823,250.0,0.00021923,2]
[313180468,1706889689303,2324.97576707,0.0002065,2]
[313180469,1706889691887,1418.69385824,0.00020444,2]
[313180470,1706889699826,427.56,0.00020023,2]
[313180471,1706889700044,427.56,0.00022287,2]
[313180472,1706889702708,1123.21479385,0.0002065,2]
[313180473,1706889704758,283.52752235,0.0002065,2]
[313180474,1706889705118,167.87596721,0.0002065,2]
[313180475,1706889707313,2329.67917957,0.0002065,2]
[313180476,1706889708518,235.56496837,0.0002065,2]
[313180477,1706889709448,1005.01,0.00021941,2]
[313180478,1706889709901,508.47094165,0.00020031,2]
[313180479,1706889724124,318.07203018,0.000235,30]
[313180480,1706889725310,1938.04909702,0.0002065,2]
[313180481,1706889726756,283.52752235,0.0002065,2]
[313180482,1706889728505,203.37826466,0.0002065,2]
[313180483,1706889728714,1123.21479385,0.0002065,2]
[313180484,1706889744823,283.52752235,0.0002065,2]
[313180485,1706889746715,317.10271994,0.0002065,2]
[313180486,1706889766749,283.52752235,0.0002065,2]
[313180487,1706889768359,1771.8,0.00021923,2]
[313180488,1706889772781,159.15980373,0.00022432,2]
[313180489,1706889784750,283.52752235,0.0002065,2]
[313180490,1706889802753,295.28230981,0.0002065,2]
[313180491,1706889807634,173.85,0.00021923,2]
[313180492,1706889823950,1500.0,0.000225,2]
[313180493,1706889838341,495.9,0.0002191,2]
[313180494,1706889841607,257.78,0.00022,2]
[313180495,1706889842883,257.78,0.00022137,2]
[313180496,1706889844161,257.78,0.00022274,2]
[313180497,1706889845975,257.78,0.00022411,2]
[313180498,1706889859289,668.29,0.00021966,2]
[313180499,1706889874295,156.94,0.00022131,2]
[313180500,1706889879854,23900.0,0.00021961,2]
[313180503,1706889887440,250.0,0.00021937,2]
[313180504,1706889891499,3197.13386433,0.00021867,2]
[313180505,1706889903551,167.0179035,0.000235,3]
[313180506,1706889904478,176.49,0.00016712,2]
[313180507,1706889920872,2000.0,0.00021952,2]
[313180508,1706889933838,150.0,0.00022,2]
[313180510,1706889973287,200.0,0.00022007,2]
[313180511,1706889979892,1656.14,0.00022007,2]
[313180512,1706889993389,2133.7099,0.00022499,2]
[313180513,1706889993779,206.0,0.0002237,2]
[313180514,1706890016580,155.45028316,0.000205,2]
[313180515,1706890077691,175.84,0.00021869,2]
[313180516,1706890088781,1121.16406462,0.000205,2]
[313180517,1706890095026,155.0,0.000205,2]
[313180518,1706890096460,155.0,0.000205,2]
[313180519,1706890099260,186.4159,0.00022415,2]
[313180520,1706890123024,405.7,0.0001997,2]
[313180521,1706890123257,405.7,0.00022233,2]
[313180522,1706890126425,250.0,0.00021918,2]
[313180523,1706890129020,160.09175453,0.000205,2]
[313180524,1706890154837,1047.6799468,0.00022233,2]
[313180525,1706890159971,385.66162827,0.00022499,2]
[313180526,1706890161388,155.0,0.00022499,2]
[313180527,1706890163000,2314.06344386,0.00022499,2]
[313180528,1706890167007,219.8587,0.00022407,2]
[313180529,1706890176126,187.17,0.00021873,2]
[313180530,1706890181487,544.56979508,0.00022499,2]
[313180531,1706890188774,-374.96758824,0.000225,2]
[313180532,1706890188796,-1155.03241176,0.00022501,2]
[313180533,1706890204099,205.0,0.0002237,2]
[313180534,1706890227448,-2481.51393888,0.00022501,2]
[313180565,1706890231650,-150.0,0.00022503,2]
[313180566,1706890231660,-150.0,0.00022503,2]
[313180567,1706890231669,-156.94,0.00022515,2]
[313180568,1706890231679,-257.78,0.00022548,2]
[313180569,1706890231688,-159.15980371,0.00022666,2]
[313180570,1706890231697,-257.78,0.00022685,2]
[313180571,1706890231707,-3465.15223912,0.00022699,2]
[313180572,1706890231716,-499.99,0.000227,2]
[313180573,1706890231725,-731.4,0.000227,2]
[313180574,1706890231735,-1000.0,0.000227,2]
[313180575,1706890231744,-660.36,0.000227,2]
[313180576,1706890231754,-392.23795717,0.000227,2]
[313180577,1706890231765,-540.79204283,0.000227,2]
[313180578,1706890231774,-1790.0,0.0002277,2]
[313180579,1706890231783,-544.35199415,0.00022778,2]
[313180580,1706890231792,-385.66162827,0.00022778,2]
[313180581,1706890231801,-155.0,0.00022778,2]
[313180582,1706890231812,-1241.74623476,0.00022778,2]
[313180583,1706890231823,-790.93158194,0.00022778,2]
[313180584,1706890231833,-283.72086324,0.00022778,2]
[313180585,1706890231842,-687.08256692,0.0002278,2]
[313180586,1706890231861,-500.0,0.0002278,2]
[313180587,1706890231874,-520.44385372,0.0002278,2]
[313180588,1706890231885,-450.0,0.0002278,2]
[313180600,1706890237593,-385.66162827,0.00022502,2]
[313180601,1706890237603,-14243.28897936,0.0002278,2]
[313180602,1706890237612,-25085.7441,0.0002278,2]
[313180603,1706890237621,-369.8865,0.0002278,2]
[313180604,1706890237630,-800.0,0.00022816,2]
[313180605,1706890237639,-257.78,0.00022822,2]
[313180606,1706890237649,-606.15860529,0.00022829,2]
[313180607,1706890237658,-606.15860529,0.00022843,2]
[313180608,1706890237667,-606.15860529,0.00022857,2]
[313180609,1706890237677,-423.1629765,0.00022871,2]
[313180610,1706890237688,-182.99562879,0.00022871,2]
[313180611,1706890237697,-649.16012413,0.00022878,2]
[313180612,1706890237707,-358.57595708,0.00022878,2]
[313180613,1706890237722,-4142.0149317,0.00022878,2]
[313180614,1706890237830,-896.25477659,0.00022878,2]
[313180615,1706890237840,-1043.8967265,0.00022878,2]
[313180616,1706890237850,-174.41982976,0.00022878,2]
[313180617,1706890237859,-1163.35728122,0.00022878,2]
[313180618,1706890237869,-308.6605,0.00022878,2]
[313180619,1706890237878,-488.49583068,0.00022878,2]
[313180620,1706890237888,-1139.78306733,0.00022878,2]
[313180621,1706890237898,-1846.17209965,0.00022878,2]
[313180622,1706890237907,-1857.32583047,0.00022878,2]
[313180623,1706890237917,-166.05194447,0.00022878,2]
[313180624,1706890237927,-1401.66366279,0.00022879,2]
[313180625,1706890237936,-403.97517887,0.00022879,2]
[313180626,1706890237946,-28408.90094623,0.0002288,2]
[313180639,1706890238079,-413558.28402683,0.0002288,2]
[313180642,1706890238088,-606.15860529,0.00022886,2]
[313180644,1706890238098,-156.94,0.000229,2]
[313180646,1706890238107,-159.15980371,0.000229,2]
[313180648,1706890238116,-153.92326907,0.000229,2]
[313180650,1706890238126,-606.15860529,0.000229,2]
[313180652,1706890238135,-67451.91661019,0.000229,2]
[313180654,1706890238144,-1871.61803112,0.000229,2]
[313180656,1706890238155,-331.00075914,0.000229,2]
[313180658,1706890238166,-151.4064887,0.000229,2]
[313180660,1706890238175,-257.78,0.00022959,2]
[313180661,1706890238185,-175.84,0.00022962,2]
[313180664,1706890238194,-1008.82211059,0.00022973,2]
[313180666,1706890238203,-1111.12644229,0.00022998,2]
[313180668,1706890238213,-1698.73490611,0.00022998,2]
[313180670,1706890238223,-368.50580545,0.00022998,2]
[313180672,1706890238233,-413.15022701,0.00022998,2]
[313180673,1706890238242,-4619.0747276,0.00022998,2]
[313180676,1706890238252,-559.28224827,0.00022998,2]
[313180678,1706890238261,-4238.99041499,0.00022999,2]
[313180680,1706890238270,-1000.0,0.00022999,2]
[313180682,1706890238280,-1006.9362,0.00022999,2]
[313180684,1706890238289,-150.01,0.00022999,2]
[313180686,1706890238299,-3307.40270442,0.00022999,2]
[313180688,1706890238308,-274.27460875,0.00022999,2]
[313180690,1706890238319,-500.0,0.00022999,2]
[313180692,1706890238328,-500.0,0.00022999,2]
[313180694,1706890238337,-294.15627509,0.00022999,2]
[313180696,1706890238346,-179.47967903,0.00022999,2]
[313180698,1706890238355,-258.74054435,0.00022999,2]
[313180700,1706890238363,-500.0,0.00022999,2]
[313180702,1706890238373,-500.0,0.00022999,2]
[313180704,1706890238383,-500.0,0.00022999,2]
[313180706,1706890238393,-500.0,0.00022999,2]
[313180708,1706890238402,-241.95535148,0.00022999,2]
[313180710,1706890238412,-302.71340567,0.00022999,2]
[313180712,1706890238421,-673132.20530917,0.00023,2]
[313180714,1706890238432,-726.28835269,0.00023,2]
[313180716,1706890238444,-741.27723955,0.00023,2]
[313180718,1706890238455,-420.8888349,0.00023,2]
[313180721,1706890238466,-2966.26000985,0.00023,2]
[313180723,1706890238484,-4334.3528307,0.00023,2]
[313180729,1706890238529,-5380.04893522,0.00023,2]
[313180826,1706890240266,-508.65,0.00023,2]
[313180940,1706890242604,-37566.14183619,0.00023,2]
[313180941,1706890242647,-10335.7805087,0.00023,2]
[313180942,1706890242753,-13507.88056499,0.00023,2]
[313180943,1706890242765,-4743.8,0.00023,2]
[313180944,1706890242785,-4344.27119999,0.00023,2]
[313180945,1706890242796,-12397.50780807,0.00023,2]
[313180946,1706890242807,-1004.01889477,0.00023,2]
[313180955,1706890244182,-283.72086324,0.00022999,2]
[313180956,1706890244193,-9314.71871707,0.00022999,2]
[313180957,1706890244301,-1440.19878561,0.00022999,2]
[313180958,1706890244311,-1329.08014513,0.00022999,2]
[313180959,1706890244321,-1308.85716909,0.00023,2]
[313180960,1706890244415,-150.01,0.00022999,2]
[313180961,1706890244424,-230766.47189616,0.00023,2]
[313180962,1706890244477,-434950.46817235,0.00023,2]
[313181092,1706890245670,-3307.40270442,0.00022999,2]
[313181094,1706890245679,-155.0,0.00022999,2]
[313181096,1706890245689,-50160.62419218,0.00023,2]
[313181099,1706890245698,-508.56900924,0.00023,2]
[313181101,1706890245707,-701.47543976,0.00023,2]
[313181103,1706890245716,-155.62607652,0.00023,2]
[313181105,1706890245725,-640.15828042,0.00023,2]
[313181107,1706890245735,-354582.87145353,0.00023,2]
[313181109,1706890245747,-2090.76825134,0.00023,2]
[313181275,1706890248969,-449.81055453,0.00022998,2]
[313181276,1706890248980,-61.52879647,0.00023,2]
[313181277,1706890249031,-1232.59825842,0.00023,2]
[313181278,1706890249092,-1084.53898945,0.00023,2]
[313181279,1706890249155,-414.5,0.00023,2]
[313181280,1706890249244,-270.45978453,0.00023,2]
[313181281,1706890249258,-251.81,0.00023,2]
[313181295,1706890262033,1362.62862751,0.00022998,4]
[313181296,1706890263865,68.48606112,0.0002237,2]
[313181297,1706890263889,137.51393888,0.0002237,2]
[313181298,1706890275534,3032.3620804,0.00022078,2]
[313181299,1706890280659,-22660.37793498,0.00022768,2]
[313181300,1706890288861,733.09095357,0.00022308,2]
[313181301,1706890296073,278.06300269,0.00022078,2]
[313181302,1706890316769,250.0,0.00022161,2]
[313181303,1706890329534,157.9404551,0.00022308,2]
[313181304,1706890329681,603.28,0.00022029,2]
[313181307,1706890342900,165.26350824,0.00022009,2]
[313181308,1706890342923,23734.73649176,0.00022009,2]
[313181309,1706890347570,640.9,0.00022009,2]
[313181310,1706890352312,182.04270309,0.00021987,2]
[313181311,1706890359552,3199.69692174,0.00021963,2]
[313181323,1706890392227,2000.0,0.00021936,2]
[313181324,1706890415215,170.75,0.00021922,2]
[313181325,1706890425678,-544.57626637,0.00022569,2]
[313181326,1706890425701,-385.66162827,0.0002257,2]
[313181327,1706890425725,-505.57440672,0.0002257,2]
[313181328,1706890425751,-155.0,0.0002257,2]
[313181329,1706890425774,-283.72086324,0.00022571,2]
[313181330,1706890425797,-1260.08950664,0.00022571,2]
[313181331,1706890427418,1207.4376444,0.00022568,2]
[313181332,1706890469292,257.78,0.0002188,2]
[313181333,1706890470575,257.78,0.00022017,2]
[313181334,1706890471865,257.78,0.00022154,2]
[313181335,1706890473158,9.59968436,0.00022291,2]
[313181336,1706890473180,248.18031564,0.00022291,2]
[313181337,1706890474496,257.78,0.00022428,2]
[313181338,1706890508092,420.7037701,0.00021963,2]
[313181339,1706890510284,-155.0,0.00022563,2]
[313181340,1706890510310,-283.72086324,0.00022564,2]
[313181341,1706890510333,-257.78,0.00022565,2]
[313181342,1706890515030,150.0,0.000234,3]
[313181343,1706890536901,500.0,0.00021956,2]
[313181344,1706890546776,176.85,0.00022,2]
[313181345,1706890547895,176.85,0.00022548,2]
[313181346,1706890573275,409.56,0.00020036,2]
[313181347,1706890573487,409.56,0.00022299,2]
[313181348,1706890574406,250.0,0.00021953,2]
[313181349,1706890579570,181.5,0.00021953,2]
[313181350,1706890587549,283.72086324,0.00022574,2]
[313181351,1706890589439,155.0,0.00022574,2]
[313181352,1706890628489,1000.0,0.000222,2]
[313181353,1706890662036,283.72086324,0.00022574,2]
[313181354,1706890667948,155.0,0.00022574,2]
[313181355,1706890728098,186.55,0.00022043,2]
[313181356,1706890728348,186.55,0.00022103,2]
[313181357,1706890728594,186.55,0.00022164,2]
[313181358,1706890728802,186.55,0.00022224,2]
[313181359,1706890729012,186.55,0.00022285,2]
[313181360,1706890729221,186.55,0.00022345,2]
[313181361,1706890729629,186.55,0.00022405,2]
[313181362,1706890729841,186.55,0.00022466,2]
[313181363,1706890730078,186.55,0.00022526,2]
[313181364,1706890744552,283.72086324,0.00022574,2]
[313181365,1706890762985,517.37,0.00021836,2]
[313181366,1706890769519,250.0,0.00021836,2]
[313181367,1706890774886,943.43596546,0.00022574,2]
[313181368,1706890777473,961.81,0.00021836,2]
[313181369,1706890794033,150.0,0.00021836,2]
[313181370,1706890821070,283.72086324,0.00022574,2]
[313181373,1706890843253,562.49,0.00021877,2]
[313181379,1706890891591,283.72086324,0.00022574,2]
[313181381,1706890903564,168.52,0.00021854,2]
[313181383,1706890919209,168.67250787,5e-05,2]
[313181384,1706890933936,155.0,0.00022574,2]
[313181385,1706890939775,232.78174068,0.00022,2]
[313181386,1706890940229,232.78174068,0.00022,2]
[313181387,1706890940283,155.68903356,0.00022574,2]
[313181388,1706890940650,235.37393543,0.00022574,2]
[313181389,1706890940684,232.78174068,0.00022,2]
[313181390,1706890941108,232.78174068,0.00022,2]
[313181391,1706890941530,232.78174068,0.00022,2]
[313181392,1706890941951,232.78174068,0.00022,2]
[313181393,1706890942357,16.57293416,0.00022,2]
[313181394,1706890942379,216.20880652,0.00022,2]
[313181395,1706890942988,232.78174068,0.00022,2]
[313181396,1706890943753,232.78174068,0.00022,2]
[313181397,1706890944219,232.78174,0.00022,2]
[313181398,1706890955705,155.0,0.0002,2]
[313181399,1706890968084,155.0,0.00022,2]
[313181400,1706890968170,155.06839559,0.00022,2]
[313181401,1706890971685,155.0,0.0002,2]
[313181402,1706890971749,155.0,0.00022,2]
[313181403,1706890975703,155.0,0.00022,2]
[313181404,1706890976712,155.0,0.00022,2]
[313181405,1706890977937,155.0,0.00022,2]
[313181406,1706890979132,155.0,0.00022,2]
[313181407,1706890981434,155.0,0.00022,2]
[313181408,1706890981927,1036.55041269,0.00022,2]
[313181409,1706890984461,157.23956064,0.00022,2]
[313181410,1706890986777,155.0,0.00022,2]
[313181411,1706890987760,155.0,0.00022,2]
[313181412,1706890990069,155.0,0.00022,2]
[313181413,1706890990141,156.65085918,0.00022,2]
[313181414,1706890990708,155.0,0.00022,2]
[313181415,1706890991687,155.0,0.0002,2]
[313181416,1706890991718,155.0,0.00022,2]
[313181417,1706890995133,155.0,0.00022,2]
[313181418,1706890995923,162.84342798,0.00022,2]
[313181419,1706890997933,155.20448562,0.00022,2]
[313181420,1706890998430,157.23956064,0.00022,2]
[313181421,1706890998790,164.1984089,0.00022,2]
[313181422,1706890999442,155.0,0.00022,2]
[313181423,1706891005760,155.0,0.00022,2]
[313181424,1706891007675,155.0,0.0002,2]
[313181425,1706891008706,155.0,0.00022,2]
[313181426,1706891011135,155.0,0.00022,2]
[313181427,1706891011706,155.0,0.00022,2]
[313181428,1706891014065,155.0,0.00022,2]
[313181429,1706891017221,263.28,0.00021824,2]
[313181430,1706891019423,309.95731837,0.00022,2]
[313181431,1706891020769,157.23956064,0.00022,2]
[313181432,1706891023761,155.0,0.00022,2]
[313181433,1706891025615,155.0,0.00022,2]
[313181434,1706891026743,186.64806482,0.00022,2]
[313181435,1706891031135,155.0,0.00022,2]
[313181436,1706891034074,190.78931201,0.00022,2]
[313181437,1706891036453,157.20344513,0.00022,2]
[313181438,1706891041771,156.01643056,0.00022,2]
[313181439,1706891042936,415.51,0.0001992,2]
[313181440,1706891043173,415.51,0.00022184,2]
[313181441,1706891058931,250.0,0.00021918,2]
[313181442,1706891084507,190.76,0.00022358,2]
[313181443,1706891098034,257.78,0.00021779,2]
[313181444,1706891099343,257.78,0.00021916,2]
[313181445,1706891100632,257.78,0.00022053,2]
[313181446,1706891102389,257.78,0.0002219,2]
[313181447,1706891103670,257.78,0.00022327,2]
[313181448,1706891104942,257.78,0.00022464,2]
[313181449,1706891124522,196.17528664,0.00022,2]
[313181450,1706891131904,329.34,0.00021981,2]
[313181451,1706891135331,150.0,0.00022,2]
[313181453,1706891163680,352.82,0.00022,2]
[313181454,1706891214170,250.0,0.0002179,2]
[313181455,1706891236022,801.5,0.00021778,2]
[313181457,1706891254465,586.1,0.00021773,2]
[313181458,1706891256062,150.0,0.00021773,2]
[313181459,1706891278841,2000.0,0.00021782,2]
[313181460,1706891284658,228.42,0.00021946,2]
[313181461,1706891284870,228.42,0.00022006,2]
[313181462,1706891285112,228.42,0.00022066,2]
[313181463,1706891285440,228.42,0.00022126,2]
[313181464,1706891285594,228.42,0.00022187,2]
[313181465,1706891286095,228.42,0.00022247,2]
[313181466,1706891286328,228.42,0.00022307,2]
[313181467,1706891286617,228.42,0.00022367,2]
[313181468,1706891286835,228.42,0.00022427,2]
[313181469,1706891287094,228.42,0.00022488,2]
[313181471,1706891306528,281.24,0.00021789,2]
[313181472,1706891354840,83263.0,0.00022425,2]
[313181487,1706891431785,-283.72086324,0.00022547,2]
[313181488,1706891431797,-228.42,0.00022548,2]
[313181489,1706891431810,-128.08481267,0.00022548,2]
[313181498,1706891432099,-86.84498475,0.00022548,2]
[313181501,1706891432111,-150.0,0.0002255,2]
[313181503,1706891432123,-125.25635515,0.00022551,2]
[313181508,1706891432184,-80.74364485,0.00022551,2]
[313181509,1706891432196,-2247.29559442,0.00022551,2]
[313181510,1706891432236,-587.67166474,0.00022551,2]
[313181526,1706891437800,-20188.76914084,0.00022551,2]
[313181528,1706891437810,-2541.7801,0.00022551,2]
[313181530,1706891437819,-10000.39175051,0.00022573,2]
[313181531,1706891437828,-199.60880723,0.00022574,2]
[313181532,1706891437837,-1098.83831406,0.00022575,2]
[313181533,1706891437847,-257.78,0.00022601,2]
[313181534,1706891437856,-228.42,0.00022608,2]
[313181535,1706891437866,-499.99,0.00022647,2]
[313181536,1706891437876,-1000.0,0.0002265,2]
[313181537,1706891437885,-228.42,0.00022668,2]
[313181538,1706891437894,-163.29628754,0.0002268,2]
[313181539,1706891437903,-163.29628754,0.00022717,2]